fUSD/lending_fUSD_20250506
["ID","MTS","AMOUNT","RATE_DAILY","PERIOD"]
[360074851,1746538237691,-490.0,0.00019629,2]
[360074852,1746538237701,-450.0,0.00019629,2]
[360074853,1746538237710,-450.0,0.00019629,2]
[360074854,1746538237720,-450.0,0.00019629,2]
[360074855,1746538237730,-450.0,0.00019629,2]
[360074856,1746538237739,-450.0,0.00019629,2]
[360074857,1746538237749,-450.0,0.00019629,2]
[360074858,1746538237759,-490.0,0.00019629,2]
[360074859,1746538237768,-450.0,0.00019629,2]
[360074860,1746538237778,-490.0,0.00019629,2]
[360074861,1746538237787,-450.0,0.00019629,2]
[360074862,1746538237796,-490.0,0.00019629,2]
[360074863,1746538237805,-450.0,0.00019629,2]
[360074864,1746538237814,-450.0,0.00019629,2]
[360074865,1746538237824,-450.0,0.00019629,2]
[360074866,1746538237834,-470.0,0.00019629,2]
[360074867,1746538237843,-450.0,0.00019629,2]
[360074868,1746538237851,-446.35235035,0.00019629,2]
[360074869,1746538237860,-379.60030711,0.00019629,2]
[360074870,1746538237870,-450.0,0.00019629,2]
[360074871,1746538237879,-450.0,0.00019629,2]
[360074872,1746538237888,-450.0,0.00019629,2]
[360074873,1746538237897,-450.0,0.00019629,2]
[360074874,1746538237906,-450.0,0.00019629,2]
[360074875,1746538237915,-450.0,0.00019629,2]
[360074876,1746538237924,-450.0,0.00019629,2]
[360074877,1746538237934,-311.19003108,0.00019629,2]
[360074878,1746538237943,-450.0,0.00019629,2]
[360074879,1746538237952,-450.0,0.00019629,2]
[360074880,1746538237962,-450.0,0.00019629,2]
[360074881,1746538237972,-450.0,0.00019629,2]
[360074882,1746538237981,-575.2899961,0.00019629,2]
[360074883,1746538237991,-450.0,0.00019629,2]
[360074885,1746538238004,-464.89981544,0.00019629,2]
[360074887,1746538238014,-450.0,0.00019629,2]
[360074888,1746538238024,-314.95281964,0.00019629,2]
[360074889,1746538238033,-494.5171079,0.00019629,2]
[360074890,1746538238043,-450.0,0.00019629,2]
[360074892,1746538238052,-190.93191666,0.00019629,2]
[360074893,1746538238061,-450.0,0.00019629,2]
[360074894,1746538238070,-450.0,0.00019629,2]
[360074895,1746538238081,-450.0,0.00019629,2]
[360074896,1746538238091,-450.0,0.00019629,2]
[360074897,1746538238100,-450.0,0.00019629,2]
[360074898,1746538238109,-450.0,0.00019629,2]
[360074899,1746538238118,-450.0,0.00019629,2]
[360074900,1746538238128,-271.04,0.00019629,2]
[360074901,1746538238137,-493.81771151,0.00019629,2]
[360074902,1746538238147,-191.00398,0.00019629,2]
[360074903,1746538238156,-450.0,0.00019629,2]
[360074904,1746538238165,-450.0,0.00019629,2]
[360074905,1746538238175,-450.0,0.00019629,2]
[360074906,1746538238184,-450.86008193,0.00019629,2]
[360074907,1746538238193,-450.0,0.00019629,2]
[360074908,1746538238203,-450.0,0.00019629,2]
[360074909,1746538238212,-450.0,0.00019629,2]
[360074910,1746538238221,-470.0,0.00019629,2]
[360074911,1746538238231,-450.0,0.00019629,2]
[360074912,1746538238240,-450.0,0.00019629,2]
[360074914,1746538238250,-450.0,0.00019629,2]
[360074915,1746538238260,-450.0,0.00019629,2]
[360074916,1746538238269,-313.03599993,0.00019629,2]
[360074917,1746538238278,-500.0,0.00019629,2]
[360074918,1746538238287,-450.0,0.00019629,2]
[360074919,1746538238296,-1536.06,0.00019629,2]
[360074920,1746538238305,-450.0,0.00019629,2]
[360074921,1746538238314,-450.0,0.00019629,2]
[360074922,1746538238324,-450.0,0.00019629,2]
[360074923,1746538238333,-450.0,0.00019629,2]
[360074924,1746538238342,-1303.55,0.00019629,2]
[360074925,1746538238351,-553.15625538,0.00019629,2]
[360074926,1746538238360,-450.0,0.00019629,2]
[360074927,1746538238369,-450.0,0.00019629,2]
[360074928,1746538238377,-450.0,0.00019629,2]
[360074929,1746538238387,-450.0,0.00019629,2]
[360074930,1746538238396,-450.0,0.00019629,2]
[360074931,1746538238405,-453.53189277,0.00019629,2]
[360074932,1746538238414,-450.0,0.00019629,2]
[360074933,1746538238424,-450.0,0.00019629,2]
[360074934,1746538238433,-450.0,0.00019629,2]
[360074935,1746538238442,-490.63474415,0.00019629,2]
[360074936,1746538238451,-450.0,0.00019629,2]
[360074937,1746538238460,-450.0,0.00019629,2]
[360074938,1746538238469,-450.0,0.00019629,2]
[360074939,1746538238478,-450.0,0.00019629,2]
[360074940,1746538238487,-450.0,0.00019629,2]
[360074941,1746538238496,-450.0,0.00019629,2]
[360074942,1746538238505,-541.81,0.00019629,2]
[360074943,1746538238516,-490.0,0.00019629,2]
[360074944,1746538238525,-450.0,0.00019629,2]
[360074945,1746538238535,-450.0,0.00019629,2]
[360074946,1746538238544,-450.0,0.00019629,2]
[360074947,1746538238554,-492.90969561,0.00019629,2]
[360074949,1746538238563,-492.59864822,0.00019629,2]
[360074951,1746538238573,-450.0,0.00019629,2]
[360074953,1746538238583,-450.0,0.00019629,2]
[360074955,1746538238592,-450.0,0.00019629,2]
[360074956,1746538238601,-453.05241577,0.00019629,2]
[360074958,1746538238610,-470.0,0.00019629,2]
[360074961,1746538238619,-490.0,0.00019629,2]
[360074963,1746538238629,-450.0,0.00019629,2]
[360074965,1746538238639,-470.0,0.00019629,2]
[360074967,1746538238648,-450.0,0.00019629,2]
[360074969,1746538238657,-450.0,0.00019629,2]
[360074971,1746538238666,-194.01,0.00019629,2]
[360074973,1746538238675,-450.0,0.00019629,2]
[360074975,1746538238684,-470.0,0.00019629,2]
[360074977,1746538238694,-450.0,0.00019629,2]
[360074979,1746538238704,-450.0,0.00019629,2]
[360074980,1746538238713,-500.0,0.00019629,2]
[360074982,1746538238722,-549.69664414,0.00019629,2]
[360074984,1746538238732,-470.0,0.00019629,2]
[360074985,1746538238741,-450.0,0.00019629,2]
[360074988,1746538238751,-450.0,0.00019629,2]
[360074989,1746538238762,-450.0,0.00019629,2]
[360074990,1746538238771,-356.33320758,0.00019629,2]
[360074991,1746538238780,-450.0,0.00019629,2]
[360074992,1746538238790,-371.33059573,0.00019629,2]
[360074993,1746538238809,-98.66940427,0.00019629,2]
[360074994,1746538238819,-470.0,0.00019629,2]
[360074995,1746538238828,-3594.25621173,0.00019653,2]
[360074996,1746538238839,-470.88489,0.00019653,2]
[360075038,1746538239340,-572.63,0.00019592,2]
[360075040,1746538239349,-625.83964709,0.00019601,2]
[360075042,1746538239359,-450.0,0.00019625,2]
[360075045,1746538239368,-500.0,0.00019628,2]
[360075047,1746538239378,-378.04115291,0.00019628,2]
[360075049,1746538239390,-121.95884709,0.00019628,2]
[360075051,1746538239400,-625.00729123,0.00019628,2]
[360075053,1746538239410,-373.15358358,0.00019653,2]
[360075055,1746538239421,-5725.98362901,0.00019653,2]
[360075057,1746538239433,-1910.23488341,0.00019653,2]
[360075060,1746538239453,-5141.83844972,0.00019653,2]
[360075167,1746538240413,-1769.99999996,0.00019653,2]
[360075185,1746538240578,-9008.98277926,0.00019653,2]
[360075187,1746538240588,-260.0215266,0.0001966,2]
[360075189,1746538240598,-450.0,0.0001966,2]
[360075191,1746538240607,-450.0,0.0001966,2]
[360075193,1746538240617,-450.0,0.0001966,2]
[360075195,1746538240627,-450.0,0.0001966,2]
[360075197,1746538240637,-500.0,0.0001966,2]
[360075199,1746538240648,-450.0,0.0001966,2]
[360075201,1746538240658,-450.0,0.0001966,2]
[360075203,1746538240667,-450.0,0.0001966,2]
[360075205,1746538240677,-543.92,0.0001966,2]
[360075207,1746538240686,-450.0,0.0001966,2]
[360075209,1746538240695,-450.0,0.0001966,2]
[360075211,1746538240705,-450.0,0.0001966,2]
[360075213,1746538240714,-450.0,0.0001966,2]
[360075215,1746538240724,-450.0,0.0001966,2]
[360075217,1746538240733,-450.0,0.0001966,2]
[360075219,1746538240742,-514.0,0.0001966,2]
[360075221,1746538240753,-450.0,0.0001966,2]
[360075224,1746538240763,-810.59,0.0001966,2]
[360075226,1746538240773,-450.0,0.0001966,2]
[360075228,1746538240782,-505.69099979,0.00019673,2]
[360075229,1746538240792,-500.0,0.00019673,2]
[360075231,1746538240801,-22.99469435,0.00019673,2]
[360075234,1746538240818,-450.0,0.00019628,2]
[360075236,1746538240828,-382.57044092,0.00019673,2]
[360075239,1746538240839,-94.43486473,0.00019673,2]
[360075241,1746538240850,-500.0,0.00019673,2]
[360075243,1746538240859,-500.0,0.00019673,2]
[360075245,1746538240869,-500.0,0.00019673,2]
[360075247,1746538240878,-500.0,0.00019673,2]
[360075249,1746538240888,-531.21687061,0.00019674,2]
[360075251,1746538240897,-460.35614334,0.00019674,2]
[360075253,1746538240907,-164.91503566,0.00019674,2]
[360075256,1746538240916,-450.0,0.00019691,2]
[360075258,1746538240926,-450.0,0.00019691,2]
[360075260,1746538240934,-450.0,0.00019691,2]
[360075262,1746538240945,-450.0,0.00019691,2]
[360075264,1746538240955,-450.0,0.00019691,2]
[360075266,1746538240965,-450.0,0.00019691,2]
[360075268,1746538240974,-450.0,0.00019691,2]
[360075270,1746538240983,-584.48,0.00019691,2]
[360075272,1746538240993,-15386.42,0.00019691,2]
[360075274,1746538241007,-494.97206428,0.00019691,2]
[360075276,1746538241018,-450.0,0.00019691,2]
[360075278,1746538241027,-450.0,0.00019691,2]
[360075280,1746538241037,-450.0,0.00019691,2]
[360075282,1746538241046,-450.0,0.00019691,2]
[360075284,1746538241056,-450.0,0.00019691,2]
[360075286,1746538241065,-393.46354073,0.00019691,2]
[360075288,1746538241076,-450.0,0.00019691,2]
[360075290,1746538241086,-450.0,0.00019691,2]
[360075292,1746538241095,-450.0,0.00019691,2]
[360075294,1746538241105,-540.23321647,0.00019691,2]
[360075296,1746538241114,-450.0,0.00019691,2]
[360075298,1746538241123,-450.0,0.00019691,2]
[360075300,1746538241133,-578.16,0.00019691,2]
[360075302,1746538241143,-657.61,0.00019691,2]
[360075304,1746538241152,-450.0,0.00019691,2]
[360075306,1746538241162,-551.07,0.00019691,2]
[360075308,1746538241172,-450.0,0.00019691,2]
[360075310,1746538241181,-450.0,0.00019691,2]
[360075312,1746538241191,-450.0,0.00019691,2]
[360075314,1746538241201,-450.0,0.00019691,2]
[360075316,1746538241210,-7324.02,0.00019691,2]
[360075318,1746538241220,-364.11039157,0.00019691,2]
[360075320,1746538241229,-551.47756717,0.00019691,2]
[360075322,1746538241239,-450.0,0.00019691,2]
[360075324,1746538241248,-552.19,0.00019691,2]
[360075326,1746538241257,-467.9,0.00019691,2]
[360075328,1746538241267,-450.0,0.00019691,2]
[360075330,1746538241277,-450.0,0.00019692,2]
[360075332,1746538241287,-450.0,0.00019692,2]
[360075334,1746538241296,-450.0,0.00019692,2]
[360075336,1746538241305,-450.0,0.00019692,2]
[360075338,1746538241315,-450.0,0.00019692,2]
[360075340,1746538241324,-450.0,0.00019692,2]
[360075342,1746538241333,-470.0,0.00019692,2]
[360075344,1746538241343,-450.0,0.00019692,2]
[360075346,1746538241352,-470.0,0.00019692,2]
[360075348,1746538241362,-450.0,0.00019692,2]
[360075350,1746538241371,-450.0,0.00019692,2]
[360075352,1746538241380,-547.74057259,0.00019692,2]
[360075354,1746538241389,-450.0,0.00019692,2]
[360075356,1746538241398,-582.52129502,0.00019692,2]
[360075358,1746538241407,-450.0,0.00019692,2]
[360075360,1746538241416,-450.0,0.00019692,2]
[360075362,1746538241426,-450.0,0.00019692,2]
[360075364,1746538241435,-450.0,0.00019692,2]
[360075366,1746538241444,-450.0,0.00019692,2]
[360075368,1746538241454,-364.65434742,0.00019692,2]
[360075370,1746538241464,-450.0,0.00019692,2]
[360075372,1746538241475,-450.0,0.00019692,2]
[360075374,1746538241484,-450.0,0.00019692,2]
[360075376,1746538241493,-450.0,0.00019692,2]
[360075378,1746538241503,-450.0,0.00019692,2]
[360075380,1746538241512,-450.0,0.00019692,2]
[360075382,1746538241522,-450.0,0.00019692,2]
[360075384,1746538241531,-450.0,0.00019692,2]
[360075386,1746538241541,-504.52315858,0.00019692,2]
[360075388,1746538241550,-450.0,0.00019692,2]
[360075390,1746538241560,-450.0,0.00019693,2]
[360075392,1746538241570,-450.0,0.00019693,2]
[360075394,1746538241579,-450.0,0.00019693,2]
[360075396,1746538241588,-450.0,0.00019693,2]
[360075398,1746538241597,-450.0,0.00019693,2]
[360075400,1746538241608,-450.0,0.00019693,2]
[360075402,1746538241617,-450.0,0.00019693,2]
[360075404,1746538241626,-450.0,0.00019693,2]
[360075406,1746538241635,-450.0,0.00019693,2]
[360075408,1746538241644,-450.0,0.00019693,2]
[360075410,1746538241653,-232.84,0.00019693,2]
[360075412,1746538241663,-450.0,0.00019693,2]
[360075414,1746538241672,-356.39741246,0.00019693,2]
[360075416,1746538241684,-93.60258754,0.00019693,2]
[360075418,1746538241693,-513.86343597,0.00019694,2]
[360075424,1746538241740,-1374.92276963,0.00019694,2]
[360075426,1746538241751,-2439.74720309,0.00019694,2]
[360075428,1746538241763,-4930.9037663,0.00019694,2]
[360075431,1746538241778,-18735.89725168,0.00019694,2]
[360075433,1746538241788,-179.88134974,0.00019696,2]
[360075435,1746538241797,-1000.0,0.000197,2]
[360075437,1746538241807,-150.44050529,0.00019726,2]
[360075439,1746538241816,-150.0,0.00019726,2]
[360075441,1746538241825,-150.0,0.00019726,2]
[360075443,1746538241835,-150.0,0.00019726,2]
[360075445,1746538241844,-500.0,0.00019726,2]
[360075447,1746538241852,-27995.33442667,0.00019735,2]
[360075449,1746538241862,-151.0,0.0001975,2]
[360075451,1746538241871,-151.0,0.00019752,2]
[360075453,1746538241880,-151.0,0.00019753,2]
[360075455,1746538241889,-150.0,0.00019753,2]
[360075457,1746538241897,-150.0,0.00019753,2]
[360075459,1746538241906,-500.0,0.00019753,2]
[360075464,1746538241947,-151.0,0.00019754,2]
[360075466,1746538241956,-179.88134974,0.00019764,2]
[360075468,1746538241966,-150.0,0.00019781,2]
[360075469,1746538241975,-150.0,0.00019781,2]
[360075470,1746538241984,-236.19361714,0.00019781,2]
[360075471,1746538241997,-450.0,0.00019796,2]
[360075472,1746538242006,-450.0,0.00019796,2]
[360075473,1746538242016,-346.26768263,0.00019796,2]
[360075474,1746538242025,-450.0,0.00019796,2]
[360075475,1746538242034,-250.0,0.00019796,2]
[360075476,1746538242044,-482.28135973,0.00019796,2]
[360075477,1746538242053,-450.0,0.00019796,2]
[360075478,1746538242062,-535.9037044,0.00019796,2]
[360075479,1746538242072,-450.0,0.00019796,2]
[360075480,1746538242082,-450.0,0.00019796,2]
[360075481,1746538242091,-490.0,0.00019796,2]
[360075482,1746538242100,-490.0,0.00019796,2]
[360075484,1746538242109,-490.0,0.00019796,2]
[360075486,1746538242119,-450.0,0.00019796,2]
[360075488,1746538242128,-273.68277317,0.00019796,2]
[360075490,1746538242137,-450.0,0.00019796,2]
[360075492,1746538242146,-490.0,0.00019796,2]
[360075494,1746538242155,-490.0,0.00019796,2]
[360075496,1746538242165,-490.0,0.00019796,2]
[360075498,1746538242174,-450.0,0.00019796,2]
[360075500,1746538242184,-450.0,0.00019796,2]
[360075502,1746538242193,-450.0,0.00019796,2]
[360075504,1746538242202,-450.0,0.00019796,2]
[360075506,1746538242211,-450.0,0.00019796,2]
[360075508,1746538242221,-450.0,0.00019796,2]
[360075510,1746538242230,-450.0,0.00019796,2]
[360075512,1746538242239,-450.0,0.00019796,2]
[360075514,1746538242248,-450.0,0.00019796,2]
[360075516,1746538242258,-470.0,0.00019796,2]
[360075518,1746538242271,-450.0,0.00019796,2]
[360075520,1746538242280,-450.0,0.00019796,2]
[360075522,1746538242294,-450.0,0.00019796,2]
[360075524,1746538242304,-448.82262756,0.00019796,2]
[360075527,1746538242314,-181.95620607,0.00019796,2]
[360075529,1746538242323,-450.0,0.00019796,2]
[360075531,1746538242332,-450.0,0.00019796,2]
[360075533,1746538242342,-450.0,0.00019796,2]
[360075535,1746538242352,-450.0,0.00019796,2]
[360075536,1746538242361,-450.0,0.00019796,2]
[360075538,1746538242371,-450.0,0.00019796,2]
[360075541,1746538242381,-450.0,0.00019796,2]
[360075543,1746538242390,-500.0,0.00019796,2]
[360075544,1746538242400,-450.0,0.00019796,2]
[360075546,1746538242409,-1303.55,0.00019796,2]
[360075549,1746538242419,-450.0,0.00019796,2]
[360075550,1746538242428,-450.0,0.00019796,2]
[360075553,1746538242438,-450.0,0.00019796,2]
[360075554,1746538242447,-450.0,0.00019796,2]
[360075557,1746538242457,-490.0,0.00019796,2]
[360075558,1746538242466,-470.0,0.00019796,2]
[360075560,1746538242475,-450.0,0.00019796,2]
[360075562,1746538242484,-332.78969886,0.00019796,2]
[360075565,1746538242494,-450.0,0.00019796,2]
[360075566,1746538242503,-450.0,0.00019796,2]
[360075568,1746538242513,-450.0,0.00019796,2]
[360075571,1746538242524,-470.0,0.00019796,2]
[360075573,1746538242534,-1000.0,0.000198,2]
[360075575,1746538242543,-450.0,0.00019807,2]
[360075577,1746538242552,-500.0,0.00019807,2]
[360075579,1746538242561,-450.0,0.00019807,2]
[360075581,1746538242570,-450.0,0.00019807,2]
[360075583,1746538242579,-450.0,0.00019807,2]
[360075585,1746538242588,-450.0,0.00019807,2]
[360075587,1746538242598,-450.0,0.00019807,2]
[360075589,1746538242607,-450.0,0.00019807,2]
[360075591,1746538242616,-450.0,0.00019807,2]
[360075593,1746538242625,-582.61,0.00019807,2]
[360075595,1746538242635,-450.0,0.00019807,2]
[360075597,1746538242645,-810.59,0.00019807,2]
[360075598,1746538242654,-219.36662437,0.00019808,2]
[360075600,1746538242664,-164.75748086,0.00019808,2]
[360075603,1746538242675,-179.88134974,0.00019832,2]
[360075604,1746538242684,-625.8396471,0.00019851,2]
[360075606,1746538242693,-400.30240514,0.00019863,2]
[360075608,1746538242702,-450.0,0.00019863,2]
[360075610,1746538242712,-450.0,0.00019863,2]
[360075612,1746538242721,-657.61,0.00019863,2]
[360075614,1746538242730,-217.35,0.00019863,2]
[360075616,1746538242740,-450.0,0.00019863,2]
[360075618,1746538242750,-552.19,0.00019863,2]
[360075621,1746538242760,-450.0,0.00019863,2]
[360075623,1746538242771,-450.0,0.00019864,2]
[360075624,1746538242781,-15386.42,0.00019864,2]
[360075627,1746538242791,-450.0,0.00019864,2]
[360075628,1746538242800,-450.0,0.00019864,2]
[360075630,1746538242809,-450.0,0.00019864,2]
[360075633,1746538242819,-450.0,0.00019864,2]
[360075635,1746538242828,-450.0,0.00019864,2]
[360075637,1746538242838,-578.16,0.00019864,2]
[360075639,1746538242847,-551.07,0.00019864,2]
[360075641,1746538242856,-450.0,0.00019864,2]
[360075643,1746538242865,-450.0,0.00019864,2]
[360075645,1746538242875,-7324.02,0.00019864,2]
[360075647,1746538242884,-467.9,0.00019864,2]
[360075649,1746538242894,-450.0,0.00019865,2]
[360075651,1746538242904,-450.0,0.00019865,2]
[360075653,1746538242913,-178.82,0.00019865,2]
[360075655,1746538242924,-371.53551251,0.00019865,2]
[360075657,1746538242934,-450.0,0.00019865,2]
[360075659,1746538242943,-450.0,0.00019865,2]
[360075661,1746538242953,-450.0,0.00019865,2]
[360075663,1746538242963,-450.0,0.00019865,2]
[360075665,1746538242972,-450.0,0.00019865,2]
[360075667,1746538242981,-450.0,0.00019865,2]
[360075669,1746538242991,-450.0,0.00019865,2]
[360075671,1746538243004,-450.0,0.00019865,2]
[360075673,1746538243016,-295.76,0.00019865,2]
[360075675,1746538243025,-450.0,0.00019865,2]
[360075677,1746538243035,-450.0,0.00019865,2]
[360075679,1746538243045,-450.0,0.00019872,2]
[360075681,1746538243055,-500.0,0.00019873,2]
[360075683,1746538243064,-500.0,0.00019873,2]
[360075685,1746538243074,-500.0,0.00019873,2]
[360075687,1746538243084,-500.0,0.00019873,2]
[360075689,1746538243094,-500.0,0.00019873,2]
[360075692,1746538243103,-501.34264843,0.00019873,2]
[360075694,1746538243113,-500.0,0.00019873,2]
[360075696,1746538243122,-500.0,0.00019873,2]
[360075698,1746538243132,-2348.926,0.00019897,2]
[360075700,1746538243141,-175.996,0.00019897,2]
[360075702,1746538243151,-151.0,0.00019899,2]
[360075704,1746538243161,-151.0,0.00019899,2]
[360075706,1746538243171,-450.0,0.00019899,2]
[360075709,1746538243181,-450.0,0.00019899,2]
[360075712,1746538243190,-450.0,0.00019899,2]
[360075714,1746538243200,-450.0,0.00019899,2]
[360075716,1746538243209,-450.0,0.00019899,2]
[360075718,1746538243219,-450.0,0.00019899,2]
[360075720,1746538243228,-450.0,0.00019899,2]
[360075722,1746538243238,-150.0,0.000199,2]
[360075725,1746538243248,-150.0,0.000199,2]
[360075727,1746538243258,-150.0,0.000199,2]
[360075729,1746538243270,-12500.0,0.000199,2]
[360075731,1746538243280,-12500.0,0.000199,2]
[360075733,1746538243291,-79710.13370171,0.000199,2]
[360075735,1746538243302,-1000.0,0.000199,2]
[360075737,1746538243312,-9509.48729396,0.000199,2]
[360075739,1746538243322,-1154.63,0.000199,2]
[360075742,1746538243332,-352.34,0.000199,2]
[360075743,1746538243343,-150.0,0.000199,2]
[360075745,1746538243354,-300.0,0.000199,2]
[360075748,1746538243365,-939.3,0.000199,2]
[360075750,1746538243376,-407.5798515,0.000199,2]
[360075752,1746538243387,-179.88134974,0.000199,2]
[360075754,1746538243398,-18419.98698158,0.0001995,2]
[360075756,1746538243409,-1432.157,0.0001995,2]
[360075758,1746538243419,-183.325,0.0001995,2]
[360075760,1746538243430,-275.675,0.0001995,2]
[360075762,1746538243440,-21232.89136027,0.00019969,2]
[360075764,1746538243450,-514.0,0.0001997,2]
[360075766,1746538243460,-500.0,0.00019973,2]
[360075768,1746538243469,-1000.0,0.00019974,2]
[360075770,1746538243479,-798.0,0.00019975,2]
[360075772,1746538243489,-548.0,0.00019975,2]
[360075774,1746538243498,-1243.0,0.00019975,2]
[360075776,1746538243508,-582.0,0.00019975,2]
[360075778,1746538243522,-1449.0,0.00019975,2]
[360075780,1746538243532,-916.0,0.00019975,2]
[360075782,1746538243541,-5933.0,0.00019975,2]
[360075784,1746538243551,-6764.0,0.00019975,2]
[360075786,1746538243560,-4015.0,0.00019975,2]
[360075788,1746538243570,-22784.27547077,0.0001998,2]
[360075790,1746538243579,-450.0,0.00019984,2]
[360075792,1746538243590,-450.0,0.00019984,2]
[360075794,1746538243599,-450.0,0.00019984,2]
[360075796,1746538243610,-450.0,0.00019984,2]
[360075798,1746538243619,-450.0,0.00019984,2]
[360075800,1746538243630,-179.325584,0.00019984,2]
[360075802,1746538243640,-450.0,0.00019984,2]
[360075804,1746538243649,-450.0,0.00019985,2]
[360075806,1746538243659,-657.61,0.00019985,2]
[360075808,1746538243669,-450.0,0.00019985,2]
[360075810,1746538243679,-552.19,0.00019985,2]
[360075812,1746538243688,-450.0,0.00019985,2]
[360075814,1746538243698,-450.0,0.00019985,2]
[360075816,1746538243708,-151.0,0.00019986,2]
[360075819,1746538243718,-151.0,0.00019986,2]
[360075821,1746538243727,-357.7773425,0.00019986,2]
[360075823,1746538243737,-16421.7018208,0.00019986,2]
[360075825,1746538243746,-3460.2982431,0.00019986,2]
[360075827,1746538243755,-3470.663244,0.00019986,2]
[360075829,1746538243766,-155.5353248,0.00019986,2]
[360075831,1746538243775,-450.0,0.00019986,2]
[360075833,1746538243785,-500.0,0.00019986,2]
[360075835,1746538243795,-450.0,0.00019986,2]
[360075837,1746538243804,-450.0,0.00019986,2]
[360075839,1746538243814,-450.0,0.00019986,2]
[360075841,1746538243823,-450.0,0.00019986,2]
[360075843,1746538243832,-540.07386646,0.00019986,2]
[360075845,1746538243841,-450.0,0.00019986,2]
[360075847,1746538243850,-450.0,0.00019986,2]
[360075849,1746538243859,-810.59,0.00019986,2]
[360075851,1746538243869,-7027.1220809,0.00019986,2]
[360075853,1746538243878,-450.0,0.00019987,2]
[360075855,1746538243887,-472.55186321,0.00019987,2]
[360075857,1746538243897,-15386.42,0.00019987,2]
[360075859,1746538243906,-450.0,0.00019987,2]
[360075861,1746538243916,-450.0,0.00019987,2]
[360075863,1746538243925,-450.0,0.00019987,2]
[360075865,1746538243934,-450.0,0.00019987,2]
[360075867,1746538243943,-450.0,0.00019987,2]
[360075869,1746538243953,-450.0,0.00019987,2]
[360075871,1746538243962,-578.16,0.00019987,2]
[360075873,1746538243971,-551.07,0.00019987,2]
[360075875,1746538243980,-450.0,0.00019987,2]
[360075877,1746538243989,-450.0,0.00019987,2]
[360075879,1746538244003,-7324.02,0.00019987,2]
[360075881,1746538244012,-467.9,0.00019987,2]
[360075883,1746538244022,-770.0,0.00019988,2]
[360075885,1746538244032,-450.0,0.00019988,2]
[360075887,1746538244042,-361.94,0.00019988,2]
[360075889,1746538244052,-538.51475778,0.00019988,2]
[360075891,1746538244061,-450.0,0.00019988,2]
[360075893,1746538244072,-450.0,0.00019988,2]
[360075895,1746538244082,-239.72,0.00019988,2]
[360075897,1746538244091,-450.0,0.00019988,2]
[360075899,1746538244101,-450.0,0.00019988,2]
[360075901,1746538244110,-450.0,0.00019988,2]
[360075904,1746538244120,-450.0,0.00019988,2]
[360075906,1746538244129,-450.0,0.00019988,2]
[360075907,1746538244138,-581.80402218,0.00019988,2]
[360075910,1746538244148,-450.0,0.00019988,2]
[360075912,1746538244157,-474.07,0.00019988,2]
[360075914,1746538244167,-234.54229236,0.00019989,2]
[360075916,1746538244176,-151.0,0.00019989,2]
[360075918,1746538244186,-151.0,0.00019989,2]
[360075920,1746538244195,-26608.51336543,0.0001999,2]